bitfinex/quotes_BTCUSD_20251215
["timestamp","ask_amount","ask_price","bid_price","bid_amount"]
[1765807284980,0.0011148,89484.0,89483.0,1.89079339]
[1765807285362,0.0011148,89484.0,89483.0,1.94081178]
[1765807285536,0.01117006,89525.0,89520.0,0.01117068]
[1765807285745,0.22340785,89523.0,89520.0,0.01117068]
[1765807285918,0.23457816,89523.0,89520.0,0.23458384]
[1765807286328,0.00011499,89525.0,89523.0,0.22340596]
[1765807286594,0.00011499,89525.0,89524.0,1.37508056]
[1765807286781,0.00011499,89525.0,89524.0,1.29954019]
[1765807287131,0.00311499,89525.0,89524.0,1.11017388]
[1765807287336,0.00011499,89525.0,89524.0,1.11017388]
[1765807287548,0.00011499,89525.0,89524.0,1.38627388]
[1765807287754,0.00311499,89525.0,89524.0,1.07417388]
[1765807288192,0.00311499,89525.0,89524.0,0.38627388]
[1765807289105,0.00511499,89525.0,89524.0,0.38627388]
[1765807289351,0.00211499,89525.0,89524.0,0.38627388]
[1765807289818,0.00311499,89525.0,89524.0,0.36863388]
[1765807290062,0.00311499,89525.0,89524.0,0.38627388]
[1765807290802,0.00311499,89525.0,89524.0,0.35274019]
[1765807291025,0.00311499,89525.0,89524.0,1.35274019]
[1765807292907,0.00311499,89525.0,89524.0,0.92544019]
[1765807293898,0.00311499,89525.0,89524.0,1.35274019]
[1765807295029,0.00311499,89525.0,89524.0,1.05114019]
[1765807295976,0.00311499,89525.0,89524.0,0.35274019]
[1765807296185,0.00311499,89525.0,89524.0,1.35274019]
[1765807302366,0.00311499,89525.0,89524.0,0.99760019]
[1765807303159,0.00311499,89525.0,89524.0,1.35270019]
[1765807306075,0.00311499,89525.0,89524.0,0.35270019]
[1765807306276,0.00311499,89525.0,89524.0,1.35270019]
[1765807307090,0.00311499,89525.0,89524.0,0.35270019]
[1765807307284,0.00311499,89525.0,89524.0,1.35270019]
[1765807308125,0.00011499,89525.0,89524.0,0.35270019]
[1765807308319,0.00011499,89525.0,89524.0,1.35270019]
[1765807308473,0.00011499,89525.0,89524.0,1.35770019]
[1765807312089,0.00011499,89525.0,89524.0,1.64840019]
[1765807317167,1.856e-05,89525.0,89524.0,1.64840019]
[1765807318228,1.856e-05,89525.0,89524.0,1.69841858]
[1765807318630,1.856e-05,89525.0,89524.0,1.7095854]
[1765807319374,1.856e-05,89525.0,89524.0,1.7075854]
[1765807319681,1.856e-05,89525.0,89524.0,1.7045854]
[1765807320278,1.856e-05,89525.0,89524.0,0.7065854]
[1765807320528,1.856e-05,89525.0,89524.0,1.7105854]
[1765807327030,0.0004,89544.0,89543.0,0.22335637]
[1765807327203,0.00078315,89544.0,89543.0,1.44752151]
[1765807329274,0.00378315,89544.0,89543.0,1.44752151]
[1765807329709,0.00678315,89544.0,89543.0,1.44752151]
[1765807330327,0.00378315,89544.0,89543.0,1.44752151]
[1765807330542,0.00078315,89544.0,89543.0,1.44752151]
[1765807330946,0.00078315,89544.0,89543.0,1.74022151]
[1765807331806,0.00078315,89544.0,89543.0,1.84047681]
[1765807332016,0.00078315,89544.0,89543.0,1.8904952]
[1765807332228,0.00078315,89544.0,89543.0,1.7902399]
[1765807332429,0.00078315,89544.0,89543.0,1.7892399]
[1765807332893,0.0004,89556.0,89543.0,1.7892399]
[1765807332894,0.0004,89556.0,89555.0,1.62526647]
[1765807333096,0.00047704,89556.0,89555.0,1.69334125]
[1765807333301,0.00047704,89556.0,89555.0,1.79343055]
[1765807333519,0.00047704,89556.0,89555.0,1.69334125]
[1765807334151,0.00047704,89556.0,89555.0,1.69434125]
[1765807336964,0.00361184,89569.0,89568.0,1.62523406]
[1765807337188,0.00361184,89569.0,89568.0,1.64329045]
[1765807337344,0.00361184,89569.0,89568.0,1.81806999]
[1765807337543,0.00361184,89569.0,89568.0,1.73815917]
[1765807339821,0.00461184,89569.0,89568.0,1.73815917]
[1765807342108,0.00461184,89569.0,89568.0,1.72055917]
[1765807342315,0.00461184,89569.0,89568.0,1.73815917]
[1765807342519,0.00461184,89569.0,89568.0,1.72055917]
[1765807342720,0.00461184,89569.0,89568.0,1.73815917]
[1765807343785,0.00461184,89569.0,89568.0,1.72055917]
[1765807344112,0.00461184,89569.0,89568.0,1.55365917]
[1765807344264,0.00461184,89569.0,89568.0,1.57125917]
[1765807344480,0.22790338,89569.0,89568.0,0.09532511]
[1765807344686,0.22790338,89569.0,89568.0,0.09486872]
[1765807344919,0.22905986,89569.0,89568.0,0.09486872]
[1765807345517,0.22332894,89554.0,89553.0,0.11124003]
[1765807345693,0.22332644,89555.0,89553.0,0.11124003]
[1765807345895,0.01116594,89558.0,89554.0,0.01116644]
[1765807346103,0.23449304,89556.0,89553.0,0.11124003]
[1765807346294,0.22332644,89555.0,89553.0,0.11124003]
[1765807346497,0.23449043,89556.0,89553.0,0.33457134]
[1765807347220,0.23448044,89560.0,89555.0,0.01116632]
[1765807347419,0.01116607,89557.0,89554.0,0.23449342]
[1765807347624,0.001,89555.0,89554.0,0.23449342]
[1765807347946,0.01116607,89557.0,89554.0,0.23449342]
[1765807348178,0.001,89556.0,89554.0,0.23449342]
[1765807348604,0.01216619,89556.0,89553.0,0.1224066]
[1765807349892,0.23448525,89558.0,89554.0,0.01116644]
[1765807350097,0.23448525,89558.0,89557.0,0.09486872]
[1765807350679,0.23448016,89560.0,89557.0,0.09486872]
[1765807350888,0.22331681,89559.0,89557.0,0.09486872]
[1765807351320,0.73705634,89570.0,89562.0,0.11124003]
[1765807351321,0.01116482,89567.0,89562.0,0.11124003]
[1765807351541,0.0004,89577.0,89562.0,0.11124003]
[1765807351542,0.01116407,89573.0,89567.0,0.22329456]
[1765807351742,0.22368013,89574.0,89567.0,0.22329456]
[1765807351743,0.00361184,89569.0,89568.0,1.13356943]
[1765807351969,0.00361184,89569.0,89568.0,1.11169642]
[1765807354384,0.00461184,89569.0,89568.0,1.33499045]
[1765807354604,0.00361184,89569.0,89568.0,1.33499045]
[1765807355249,0.00561184,89569.0,89568.0,1.33499045]
[1765807355888,0.00761184,89569.0,89568.0,1.33499045]
[1765807358174,0.00561184,89569.0,89568.0,1.33499045]
[1765807358553,0.00661184,89569.0,89568.0,1.33499045]
[1765807358758,0.00961184,89569.0,89568.0,1.33499045]
[1765807361916,0.00961184,89569.0,89568.0,1.62569045]
[1765807362800,0.00661184,89569.0,89568.0,1.62569045]
[1765807363182,0.00661184,89569.0,89568.0,1.62669045]
[1765807364618,0.00661184,89569.0,89568.0,1.62569045]
[1765807365036,0.00661184,89569.0,89568.0,1.62669045]
[1765807365196,0.00361184,89569.0,89568.0,1.62669045]
[1765807373357,0.00361184,89569.0,89568.0,1.70660127]
[1765807373943,0.00361184,89569.0,89568.0,1.62669045]
[1765807374150,0.0004,89574.0,89573.0,0.33452159]
[1765807374358,0.0004,89574.0,89573.0,1.44699031]
[1765807374977,0.0004,89574.0,89573.0,0.75855028]
[1765807375248,0.22483555,89574.0,89573.0,0.11246872]
[1765807376494,0.00155648,89574.0,89573.0,0.33575028]
[1765807376715,0.00555648,89574.0,89573.0,0.33575028]
[1765807377514,0.00655648,89574.0,89573.0,0.11246872]
[1765807377658,0.00655648,89574.0,89573.0,0.33575028]
[1765807377855,0.00555648,89574.0,89573.0,0.33575028]
[1765807378255,0.00955648,89574.0,89573.0,0.33575028]
[1765807378771,0.00955648,89574.0,89573.0,0.31815028]
[1765807379513,0.00555648,89574.0,89573.0,0.31815028]
[1765807379901,0.00955648,89574.0,89573.0,0.31815028]
[1765807380317,0.22883555,89574.0,89573.0,0.09486872]
[1765807380496,0.00555648,89574.0,89573.0,0.09486872]
[1765807380698,0.23283555,89574.0,89573.0,0.09486872]
[1765807385397,0.00955648,89574.0,89573.0,0.09486872]
[1765807385998,0.00955648,89574.0,89573.0,0.31815028]
[1765807386214,0.00955648,89574.0,89573.0,0.42939031]
[1765807389904,0.23283555,89574.0,89573.0,0.09486872]
[1765807390106,0.00955648,89574.0,89573.0,0.09486872]
[1765807390281,0.23283555,89574.0,89573.0,0.09486872]
[1765807391559,0.00955648,89574.0,89573.0,0.09486872]
[1765807393195,0.00955648,89574.0,89573.0,0.31815028]
[1765807395679,0.00955648,89574.0,89573.0,0.09486872]
[1765807396117,0.23283555,89574.0,89573.0,0.09486872]
[1765807396323,0.00955648,89574.0,89573.0,0.09486872]
[1765807396581,0.00955648,89574.0,89573.0,0.31815028]
[1765807397195,0.00482286,89574.0,89573.0,0.31815028]
[1765807398036,0.22810193,89574.0,89573.0,0.09486872]
[1765807398660,0.33934196,89574.0,89573.0,0.09486872]
[1765807399597,0.22327907,89574.0,89573.0,0.09486872]
[1765807399829,0.22827907,89574.0,89573.0,0.09486872]
[1765807400059,0.23427907,89574.0,89573.0,0.09486872]
[1765807401035,0.290049,89574.0,89573.0,0.09486872]
[1765807401381,0.23427907,89574.0,89573.0,0.09486872]
[1765807402020,0.290049,89574.0,89573.0,0.09486872]
[1765807402217,0.23427907,89574.0,89573.0,0.09486872]
[1765807402397,0.3455191,89574.0,89573.0,0.09486872]
[1765807403201,0.23427907,89574.0,89573.0,0.09486872]
[1765807403404,0.3455191,89574.0,89573.0,0.09486872]
[1765807403667,0.23427907,89574.0,89573.0,0.09486872]
[1765807407380,0.307649,89574.0,89573.0,0.09486872]
[1765807407553,0.25187907,89574.0,89573.0,0.09486872]
[1765807407777,0.307649,89574.0,89573.0,0.09486872]
[1765807408223,0.25187907,89574.0,89573.0,0.09486872]
[1765807408424,0.307649,89574.0,89573.0,0.09486872]
[1765807408653,0.25187907,89574.0,89573.0,0.09486872]
[1765807409068,0.307649,89574.0,89573.0,0.09486872]
[1765807409239,0.25187907,89574.0,89573.0,0.09486872]
[1765807413651,0.307649,89574.0,89573.0,0.09486872]
[1765807414029,0.307649,89574.0,89557.0,0.09486872]
[1765807414030,0.22331896,89558.0,89557.0,0.09486872]
[1765807415706,0.22531896,89558.0,89557.0,0.09486872]
[1765807416507,0.22631896,89558.0,89557.0,0.09486872]
[1765807418304,0.003,89558.0,89557.0,0.09486872]
[1765807418910,0.003,89558.0,89557.0,0.31819018]
[1765807419142,0.003,89558.0,89557.0,0.09486872]
[1765807419363,0.003,89558.0,89557.0,0.42943021]
[1765807420757,0.003,89558.0,89557.0,0.20610875]
[1765807421021,0.003,89558.0,89557.0,0.42943021]
[1765807423352,0.003,89558.0,89557.0,0.43104308]
[1765807424713,0.003,89558.0,89557.0,0.5109539]
[1765807425116,0.003,89558.0,89557.0,0.43104308]
[1765807425323,0.003,89558.0,89557.0,0.51123671]
[1765807425518,0.003,89558.0,89557.0,0.43104308]
[1765807426213,0.003,89558.0,89557.0,1.43104308]
[1765807428846,0.003,89558.0,89557.0,1.73290653]
[1765807430217,0.003,89558.0,89557.0,0.73290653]
[1765807430427,0.003,89558.0,89557.0,1.73290653]
[1765807431217,0.003,89558.0,89557.0,0.73290653]
[1765807431460,0.003,89558.0,89557.0,1.73290653]
[1765807432244,0.003,89558.0,89557.0,0.73290653]
[1765807432466,0.003,89558.0,89557.0,1.73290653]
[1765807433281,0.003,89558.0,89557.0,0.73290653]
[1765807433475,0.003,89558.0,89557.0,1.73290653]
[1765807438972,0.003,89558.0,89557.0,1.06720653]
[1765807439172,0.003,89558.0,89557.0,1.08480653]
[1765807439536,0.003,89558.0,89557.0,1.75050653]
[1765807440396,0.003,89558.0,89557.0,1.54120653]
[1765807440591,0.003,89558.0,89557.0,1.75050653]
[1765807441157,0.003,89558.0,89557.0,1.13600653]
[1765807441476,0.003,89558.0,89557.0,0.44864308]
[1765807462342,0.003,89558.0,89557.0,0.33740305]
[1765807465891,0.22631896,89558.0,89557.0,0.09486872]
[1765807466150,0.003,89558.0,89557.0,0.09486872]
[1765807467571,0.003,89558.0,89557.0,0.31819018]
[1765807468234,0.003,89558.0,89557.0,0.42943021]
[1765807470167,0.003,89558.0,89557.0,0.43104308]
[1765807470549,0.003,89558.0,89557.0,0.51113441]
[1765807471147,0.003,89558.0,89557.0,1.72174308]
[1765807472051,0.001,89558.0,89557.0,1.72174308]
[1765807472396,0.2455,89575.0,89574.0,0.3345191]
[1765807472599,0.2455,89575.0,89574.0,0.42938782]
[1765807473316,0.2455,89575.0,89574.0,0.20610875]
[1765807473526,0.2232746,89576.0,89574.0,0.20610875]
[1765807473760,0.01156357,89577.0,89576.0,0.11124003]
[1765807473978,0.0004,89577.0,89576.0,0.33451412]
[1765807476142,0.0014,89577.0,89576.0,0.33451412]
[1765807476840,0.0044,89577.0,89576.0,0.33451412]
[1765807477771,0.0044,89577.0,89576.0,0.11124003]
[1765807477994,0.0044,89577.0,89576.0,0.33451412]
[1765807481238,0.0044,89577.0,89576.0,0.11124003]
[1765807481446,0.0044,89577.0,89576.0,0.33451412]
[1765807481651,0.0044,89577.0,89576.0,0.11124003]
[1765807481855,0.0044,89577.0,89576.0,0.33451412]
[1765807482485,0.0044,89577.0,89576.0,0.11124003]
[1765807482701,0.22767159,89577.0,89576.0,0.11124003]
[1765807482914,0.01556357,89577.0,89574.0,0.20610875]
[1765807483122,0.22327609,89576.0,89574.0,0.20610875]
[1765807483332,0.22327658,89575.0,89574.0,0.20610875]
[1765807483955,0.01156357,89577.0,89575.0,0.22327636]
[1765807484233,0.01256357,89577.0,89575.0,0.22327636]
[1765807484467,0.23583641,89577.0,89574.0,0.44054946]
[1765807484668,0.23583641,89577.0,89574.0,0.32930943]
[1765807484862,0.23583641,89577.0,89575.0,0.22327627]
[1765807485198,0.23583641,89577.0,89574.0,0.32930943]
[1765807485605,0.22327526,89576.0,89574.0,0.09486872]
[1765807485792,0.01456357,89577.0,89575.0,0.22327586]
[1765807485994,0.0034,89577.0,89576.0,0.22327409]
[1765807486225,0.0034,89577.0,89575.0,0.22327586]
[1765807486431,0.22367222,89577.0,89574.0,0.10603267]
[1765807486601,0.22367222,89577.0,89574.0,0.32931141]
[1765807486801,0.002,89576.0,89574.0,0.32931141]
[1765807487027,0.003,89576.0,89574.0,0.32931141]
[1765807487320,0.002,89576.0,89575.0,0.22327658]
[1765807487565,0.22367306,89577.0,89574.0,0.32931141]
[1765807487679,0.22467306,89577.0,89574.0,0.32931141]
[1765807488191,0.22467306,89577.0,89575.0,0.22327593]
[1765807489054,0.22767306,89577.0,89575.0,0.22327593]
[1765807489215,0.22327632,89576.0,89574.0,0.09486872]
[1765807489732,0.22427632,89576.0,89575.0,0.11124003]
[1765807489936,0.22327632,89576.0,89575.0,0.11124003]
[1765807490162,0.22327632,89576.0,89574.0,0.09486872]
[1765807490517,0.22327658,89575.0,89574.0,0.09486872]
[1765807493019,0.22627658,89575.0,89574.0,0.09486872]
[1765807493519,0.22327658,89575.0,89574.0,0.09486872]
[1765807493944,0.22827658,89575.0,89574.0,0.09486872]
[1765807498471,0.005,89575.0,89574.0,0.09486872]
[1765807498699,0.005,89575.0,89574.0,0.31814779]
[1765807498842,0.005,89575.0,89574.0,0.09486872]
[1765807499050,0.005,89575.0,89574.0,0.31814779]
[1765807499250,0.005,89575.0,89574.0,0.09486872]
[1765807499438,0.005,89575.0,89574.0,0.31814779]
[1765807501163,0.005,89575.0,89574.0,0.42938782]
[1765807501358,0.22827658,89575.0,89574.0,0.20610875]
[1765807502285,0.22827658,89575.0,89574.0,0.09486872]
[1765807502835,0.22827658,89575.0,89574.0,0.20610875]
[1765807504133,0.22827658,89575.0,89574.0,0.09486872]
[1765807505245,0.49137658,89575.0,89574.0,0.09486872]
[1765807505522,0.89331661,89575.0,89574.0,0.09486872]
[1765807505753,0.22331896,89558.0,89557.0,0.09486872]
[1765807507680,0.22331896,89558.0,89541.0,0.09486872]
[1765807507681,0.01116756,89545.0,89541.0,0.09486872]
[1765807507923,0.006,89558.0,89541.0,0.09486872]
[1765807507924,0.01116744,89546.0,89543.0,0.2345237]
[1765807508099,0.23451658,89546.0,89543.0,0.2345237]
[1765807508293,0.01116744,89546.0,89544.0,0.22335324]
[1765807508534,0.23451581,89547.0,89544.0,0.22335324]
[1765807508735,0.01116731,89547.0,89544.0,0.23452093]
[1765807509083,0.2345111,89548.0,89545.0,0.23451676]
[1765807510016,0.2345111,89548.0,89546.0,0.22334884]
[1765807510218,0.22334412,89548.0,89545.0,0.2345187]
[1765807510452,0.23451313,89549.0,89545.0,0.2345187]
[1765807510664,0.01116719,89548.0,89545.0,0.01116756]
[1765807510870,0.01116719,89548.0,89541.0,7.704e-05]
[1765807510871,0.01116769,89544.0,89541.0,7.704e-05]
[1765807511103,0.22335887,89542.0,89541.0,7.704e-05]
[1765807511385,0.6252989,89542.0,89541.0,7.704e-05]
[1765807511828,0.78582491,89542.0,89541.0,7.704e-05]
[1765807514113,0.78982491,89542.0,89541.0,7.704e-05]
[1765807514316,0.86867131,89542.0,89541.0,7.704e-05]
[1765807514728,0.87567131,89542.0,89541.0,0.00107704]
[1765807515379,0.80082491,89542.0,89541.0,0.00107704]
[1765807515563,0.01117305,89501.0,89498.0,0.09486872]
[1765807515815,0.01117305,89501.0,89498.0,0.09686474]
[1765807516209,0.23462469,89505.0,89501.0,0.01117305]
[1765807516396,0.01117256,89505.0,89501.0,0.01278592]
[1765807516569,0.01117256,89505.0,89501.0,0.23624664]
[1765807516773,0.01117243,89506.0,89501.0,0.23624664]
[1765807516774,0.01117243,89506.0,89503.0,0.22345583]
[1765807517242,0.23462168,89506.0,89503.0,0.23462863]
[1765807517372,0.01117256,89505.0,89502.0,0.23463026]
[1765807518125,0.001,89506.0,89503.0,0.23462712]
[1765807518323,0.003,89506.0,89504.0,0.22345122]
[1765807518465,0.002,89506.0,89504.0,0.22506409]
[1765807519078,0.001,89505.0,89504.0,0.22506409]
[1765807519287,0.001,89505.0,89504.0,0.33630412]
[1765807520508,0.2346135,89509.0,89508.0,0.11124003]
[1765807520952,0.2346135,89509.0,89505.0,0.01117256]
[1765807520953,0.001,89506.0,89505.0,0.11124003]
[1765807521152,0.001,89506.0,89505.0,0.33469123]
[1765807521391,0.01117206,89509.0,89507.0,0.22344443]
[1765807521776,0.01117206,89509.0,89505.0,0.11124003]
[1765807521977,0.01417206,89509.0,89506.0,0.22344828]
[1765807522177,0.003,89509.0,89506.0,0.01117243]
[1765807522405,0.003,89509.0,89507.0,0.22344621]
[1765807522639,0.23461183,89510.0,89507.0,0.22344621]
[1765807522824,0.01117193,89510.0,89506.0,0.23462113]
[1765807523190,0.003,89509.0,89507.0,0.22344557]
[1765807523404,0.003,89509.0,89508.0,0.22344371]
[1765807523935,0.003,89509.0,89508.0,0.22505658]
[1765807524483,0.005,89509.0,89508.0,0.22505658]
[1765807524714,0.01117118,89516.0,89513.0,0.2234298]
[1765807524918,0.22342408,89516.0,89515.0,0.09486872]
[1765807525128,0.23459254,89517.0,89515.0,0.09486872]
[1765807525332,0.22342374,89516.0,89515.0,0.09486872]
[1765807526072,0.22742374,89516.0,89515.0,0.09486872]
[1765807526480,0.22342374,89516.0,89515.0,0.09486872]
[1765807527613,0.22642374,89516.0,89515.0,0.09486872]
[1765807528200,0.003,89516.0,89515.0,0.31829496]
[1765807528401,0.003,89516.0,89515.0,0.31990783]
[1765807528678,0.007,89516.0,89515.0,0.43114786]
[1765807528858,0.007,89516.0,89515.0,0.09648159]
[1765807529198,0.23042374,89516.0,89515.0,0.09648159]
[1765807529696,0.007,89516.0,89515.0,0.31990783]
[1765807529950,0.007,89516.0,89515.0,0.43114786]
[1765807532457,0.23042374,89516.0,89515.0,0.20772162]
[1765807534091,0.007,89516.0,89515.0,0.20772162]
[1765807534504,0.007,89516.0,89515.0,0.43114786]
[1765807534714,0.007,89516.0,89515.0,0.20772162]
[1765807535295,0.23042374,89516.0,89515.0,0.20772162]
[1765807535425,0.007,89516.0,89515.0,0.20772162]
[1765807535633,0.007,89516.0,89515.0,0.45349048]
[1765807535833,0.007,89516.0,89515.0,0.43114786]
[1765807536109,0.007,89516.0,89515.0,1.72184786]
[1765807536286,0.007,89516.0,89515.0,1.77186625]
[1765807536489,0.01116657,89553.0,89515.0,1.77186625]
[1765807536490,0.23446346,89567.0,89562.0,0.01116544]
[1765807536690,0.0004,89596.0,89570.0,0.01116445]
[1765807536691,0.01116382,89575.0,89570.0,0.01116445]
[1765807536913,0.01116395,89574.0,89571.0,0.34569025]
[1765807537075,0.0111637,89576.0,89572.0,0.23444819]
[1765807537279,0.0004,89577.0,89576.0,0.22327409]
[1765807537671,0.00051486,89577.0,89576.0,0.33451412]
[1765807538273,0.00051486,89577.0,89576.0,0.33612699]
[1765807538819,0.00251486,89577.0,89576.0,0.33612699]
[1765807539215,0.00051486,89577.0,89576.0,0.33612699]
[1765807539624,0.00151486,89577.0,89576.0,0.33612699]
[1765807556002,0.00051486,89577.0,89576.0,0.33612699]
[1765807556201,0.23228208,89592.0,89589.0,0.22324113]
[1765807556422,0.23439113,89594.0,89591.0,0.09486872]
[1765807556604,0.22323172,89593.0,89591.0,0.09486872]
[1765807556935,0.01116146,89594.0,89591.0,0.09486872]
[1765807557325,0.22323421,89592.0,89591.0,0.09486872]
[1765807557484,0.22523421,89592.0,89591.0,0.09486872]
[1765807558096,0.22323421,89592.0,89591.0,0.09486872]
[1765807558347,0.01136133,89595.0,89592.0,0.22323178]
[1765807558550,0.0002,89595.0,89592.0,0.23439536]
[1765807558756,0.22322923,89594.0,89591.0,0.09486872]
[1765807558936,0.22323421,89592.0,89591.0,0.09486872]
[1765807559603,0.22323397,89593.0,89591.0,0.09486872]
[1765807559844,0.22323421,89592.0,89591.0,0.09486872]
[1765807560467,0.22423421,89592.0,89591.0,0.09486872]
[1765807560772,0.22623421,89592.0,89591.0,0.09486872]
[1765807583571,0.47173421,89592.0,89591.0,0.09486872]
[1765807584479,0.22623421,89592.0,89591.0,0.09486872]
[1765807585648,0.003,89592.0,89591.0,0.31810542]
[1765807585847,0.003,89592.0,89591.0,0.43095832]
[1765807587270,0.002,89592.0,89591.0,0.43095832]
[1765807587696,0.0002,89595.0,89594.0,0.33446926]
[1765807587869,0.0002,89595.0,89594.0,0.33608213]
[1765807589164,0.0022,89595.0,89594.0,0.33608213]
[1765807589887,0.0042,89595.0,89594.0,0.33608213]
[1765807590341,0.0022,89595.0,89594.0,0.33608213]
[1765807590710,0.0022,89595.0,89594.0,0.34008213]
[1765807591113,0.0002,89595.0,89594.0,0.34008213]
[1765807591528,0.0002,89595.0,89594.0,0.34308213]
[1765807593115,0.0002,89595.0,89594.0,1.34308213]
[1765807594370,0.0002,89595.0,89594.0,1.63378213]
[1765807597700,0.0002,89595.0,89594.0,1.57256049]
[1765807597925,0.0002,89595.0,89594.0,1.68380052]
[1765807598337,0.0002,89595.0,89594.0,1.69163511]
[1765807598756,0.0002,89595.0,89594.0,1.68863511]
[1765807599163,0.0002,89595.0,89594.0,0.69363511]
[1765807599383,0.0002,89595.0,89594.0,1.69363511]
[1765807599874,0.0002,89595.0,89594.0,1.68963511]
[1765807600300,0.0002,89595.0,89594.0,1.69563511]
[1765807600818,0.0002,89595.0,89594.0,1.68463511]
[1765807601200,0.0002,89595.0,89594.0,1.69463511]
[1765807601413,0.0002,89595.0,89594.0,1.68863511]
[1765807601814,0.0002,89595.0,89594.0,1.68963511]
[1765807602197,0.0002,89595.0,89594.0,1.69363511]
[1765807603210,0.0002,89595.0,89594.0,1.68863511]
[1765807603598,0.0002,89595.0,89594.0,1.66121672]
[1765807604040,0.0002,89595.0,89594.0,1.71123511]
[1765807604617,0.0002,89595.0,89594.0,1.70723511]
[1765807605014,0.0002,89595.0,89594.0,1.73767758]
[1765807605474,0.00783459,89607.0,89606.0,1.67515775]
[1765807605644,0.00794945,89607.0,89606.0,1.69437062]
[1765807606391,0.00794945,89607.0,89606.0,1.68472007]
[1765807606614,0.00794945,89607.0,89606.0,1.70232007]
[1765807607169,0.00794945,89607.0,89606.0,0.59108004]
[1765807607361,0.00794945,89607.0,89606.0,1.70532007]
[1765807608889,0.00794945,89607.0,89606.0,1.7342702]
[1765807610195,0.00794945,89607.0,89606.0,0.7342702]
[1765807610417,0.00794945,89607.0,89606.0,1.7342702]
[1765807611819,0.00794945,89607.0,89606.0,1.65630168]
[1765807612465,0.00794945,89607.0,89606.0,1.63870168]
[1765807612692,0.00794945,89607.0,89606.0,1.65530168]
[1765807613300,0.00794945,89607.0,89606.0,1.65230168]
[1765807613477,0.00794945,89607.0,89606.0,1.54106165]
[1765807613681,0.00794945,89607.0,89606.0,1.65430168]
[1765807614362,0.00794945,89607.0,89606.0,1.65630168]
[1765807615592,0.00794945,89607.0,89606.0,1.65430168]
[1765807615919,0.00794945,89607.0,89606.0,1.65630168]
[1765807616571,0.00794945,89607.0,89606.0,1.65430168]
[1765807617841,0.00794945,89607.0,89606.0,1.65230168]
[1765807618080,0.00794945,89607.0,89606.0,1.65430168]
[1765807618291,0.00794945,89607.0,89606.0,1.65630168]
[1765807632620,0.00794945,89607.0,89606.0,0.65630168]
[1765807632840,0.00794945,89607.0,89606.0,1.65630168]
[1765807635661,0.00794945,89607.0,89606.0,0.70632007]
[1765807635887,0.00794945,89607.0,89606.0,1.70632007]
[1765807637841,0.00794945,89607.0,89606.0,1.772004]
[1765807638527,0.00794945,89607.0,89606.0,1.768004]
[1765807638948,0.00794945,89607.0,89606.0,1.771004]
[1765807639151,0.00794945,89607.0,89606.0,1.774004]
[1765807642879,0.00794945,89607.0,89606.0,1.70832007]
[1765807643255,0.00794945,89607.0,89606.0,1.64070168]
[1765807643766,0.00794945,89607.0,89606.0,1.65830168]
[1765807647181,0.00794945,89607.0,89606.0,1.7395414]
[1765807647385,0.00794945,89607.0,89606.0,1.6907414]
[1765807647619,0.00794945,89607.0,89606.0,1.68440482]
[1765807647986,0.00794945,89607.0,89606.0,1.75080482]
[1765807648172,0.00794945,89607.0,89606.0,1.74780482]
[1765807648375,0.00794945,89607.0,89606.0,1.74680482]
[1765807648810,0.00794945,89607.0,89606.0,1.74780482]
[1765807649058,0.00794945,89607.0,89606.0,1.63656479]
[1765807649225,0.00794945,89607.0,89606.0,1.74780482]
[1765807652905,0.01270755,89607.0,89606.0,1.74780482]
[1765807654092,0.01270755,89607.0,89606.0,1.78130129]
[1765807654838,0.01270755,89607.0,89606.0,1.83131968]
[1765807657724,0.01270755,89607.0,89606.0,1.85868938]
[1765807658219,0.01270755,89607.0,89606.0,1.85668938]
[1765807658495,0.01270755,89607.0,89606.0,1.85568938]
[1765807658671,0.01270755,89607.0,89606.0,1.85868938]
[1765807659030,0.01270755,89607.0,89606.0,1.86068938]
[1765807660294,0.01270755,89607.0,89606.0,0.86068938]
[1765807660623,0.01270755,89607.0,89606.0,1.86068938]
[1765807661033,0.01270755,89607.0,89606.0,1.85768938]
[1765807661434,0.01270755,89607.0,89606.0,1.85968938]
[1765807662359,0.0004,89615.0,89606.0,1.85968938]
[1765807662360,0.0004,89615.0,89614.0,1.67513783]
[1765807662558,0.0004,89615.0,89614.0,1.6767507]
[1765807662942,0.00064141,89615.0,89614.0,1.6767507]
[1765807663696,0.00064141,89615.0,89614.0,1.68790506]
[1765807664709,0.00064141,89615.0,89614.0,1.68890506]
[1765807664838,0.00064141,89615.0,89614.0,1.68990506]
[1765807665853,0.00064141,89615.0,89614.0,1.7716469]
[1765807669849,0.00064141,89615.0,89614.0,1.7706469]
[1765807670159,0.00064141,89615.0,89614.0,1.7736469]
[1765807670881,0.00064141,89615.0,89614.0,1.7726469]
[1765807671368,0.00064141,89615.0,89614.0,1.7756469]
[1765807675164,1e-08,89615.0,89614.0,1.7756469]
[1765807675373,0.0004,89631.0,89628.0,0.01115722]
[1765807675571,0.0004,89631.0,89630.0,1.77716345]
[1765807676090,0.00088272,89631.0,89630.0,1.77716345]
[1765807676641,0.00088272,89631.0,89630.0,1.78162817]
[1765807677459,0.0004,89659.0,89658.0,0.33430991]
[1765807677708,0.000783,89659.0,89658.0,1.35190991]
[1765807677912,0.000783,89659.0,89658.0,1.13050991]
[1765807678728,0.000783,89659.0,89658.0,1.35190991]
[1765807679140,0.003783,89659.0,89658.0,1.35190991]
[1765807679349,0.003783,89659.0,89658.0,1.35352278]
[1765807681078,0.003783,89659.0,89658.0,1.69424117]
[1765807681864,0.003783,89659.0,89658.0,1.51538275]
[1765807682051,0.000783,89659.0,89658.0,1.64422278]
[1765807682471,0.000783,89659.0,89658.0,1.64922278]
[1765807682652,0.000783,89659.0,89658.0,0.64622278]
[1765807682962,0.000783,89659.0,89658.0,1.64422278]
[1765807683166,0.00162741,89659.0,89658.0,1.69524117]
[1765807683386,0.00162741,89659.0,89658.0,1.69624117]
[1765807683985,0.00162741,89659.0,89658.0,1.70070436]
[1765807685851,0.00162741,89659.0,89658.0,1.65068597]
[1765807687089,0.00162741,89659.0,89658.0,1.5023625]
[1765807687311,0.00162741,89659.0,89658.0,0.12005259]
[1765807687526,0.2246948,89659.0,89658.0,0.10245259]
[1765807688488,0.2246948,89659.0,89658.0,0.10145259]
[1765807688693,0.2246948,89659.0,89658.0,0.001]
[1765807688894,0.2246948,89659.0,89658.0,0.002]
[1765807689512,0.2246948,89659.0,89658.0,0.001]
[1765807689932,0.2266948,89659.0,89658.0,0.001]
[1765807690136,0.22310579,89644.0,89641.0,0.11160819]
[1765807690552,0.00033179,89642.0,89641.0,0.11160819]
[1765807691080,0.00033179,89642.0,89641.0,0.24515943]
[1765807691306,0.00033179,89642.0,89641.0,0.22284822]
[1765807692508,0.00033179,89642.0,89641.0,0.44596041]
[1765807693497,0.00533179,89642.0,89641.0,0.44596041]